fUSD/lending_fUSD_20250208
["ID","MTS","AMOUNT","RATE_DAILY","PERIOD"]
[352334693,1739045435062,-648.95,0.00010134,2]
[352334694,1739045435071,-500.0,0.00010134,2]
[352334697,1739045435080,-500.0,0.00010134,2]
[352334698,1739045435091,-500.0,0.00010134,2]
[352334701,1739045435101,-500.0,0.00010134,2]
[352334703,1739045435113,-500.0,0.00010134,2]
[352334705,1739045435123,-500.0,0.00010134,2]
[352334706,1739045435134,-500.0,0.00010134,2]
[352334709,1739045435144,-500.0,0.00010134,2]
[352334710,1739045435154,-500.0,0.00010134,2]
[352334712,1739045435164,-770.3,0.00010134,2]
[352334715,1739045435173,-500.0,0.00010134,2]
[352334717,1739045435183,-500.0,0.00010134,2]
[352334718,1739045435194,-622.01,0.00010134,2]
[352334720,1739045435204,-500.0,0.00010134,2]
[352334722,1739045435213,-500.0,0.00010134,2]
[352334724,1739045435222,-500.0,0.00010134,2]
[352334726,1739045435231,-500.0,0.00010134,2]
[352334728,1739045435240,-500.0,0.00010134,2]
[352334730,1739045435250,-500.0,0.00010134,2]
[352334732,1739045435259,-500.0,0.00010134,2]
[352334734,1739045435271,-553.5,0.00010134,2]
[352334736,1739045435280,-500.0,0.00010134,2]
[352334738,1739045435290,-500.0,0.00010134,2]
[352334740,1739045435299,-500.0,0.00010134,2]
[352334742,1739045435308,-500.0,0.00010134,2]
[352334744,1739045435318,-500.0,0.00010134,2]
[352334746,1739045435328,-500.0,0.00010134,2]
[352334748,1739045435338,-500.0,0.00010134,2]
[352334750,1739045435347,-651.34,0.00010134,2]
[352334752,1739045435356,-510.81,0.00010134,2]
[352334754,1739045435365,-500.0,0.00010134,2]
[352334756,1739045435374,-500.0,0.00010134,2]
[352334758,1739045435383,-566.03,0.00010134,2]
[352334760,1739045435392,-553.02,0.00010134,2]
[352334762,1739045435401,-575.57,0.00010134,2]
[352334764,1739045435411,-500.0,0.00010134,2]
[352334766,1739045435420,-500.0,0.00010134,2]
[352334768,1739045435429,-500.0,0.00010134,2]
[352334770,1739045435439,-500.0,0.00010134,2]
[352334772,1739045435448,-500.0,0.00010134,2]
[352334774,1739045435458,-500.0,0.00010134,2]
[352334776,1739045435467,-500.0,0.00010134,2]
[352334778,1739045435476,-537.32,0.00010134,2]
[352334780,1739045435485,-500.0,0.00010134,2]
[352334782,1739045435495,-1542.19,0.00010134,2]
[352334784,1739045435504,-500.0,0.00010134,2]
[352334786,1739045435513,-500.0,0.00010134,2]
[352334788,1739045435522,-1075.2,0.00010134,2]
[352334790,1739045435532,-500.0,0.00010134,2]
[352334792,1739045435541,-500.0,0.00010134,2]
[352334794,1739045435550,-744.75,0.00010134,2]
[352334796,1739045435559,-500.0,0.00010134,2]
[352334798,1739045435568,-1161.36,0.00010134,2]
[352334800,1739045435577,-976.67,0.00010134,2]
[352334802,1739045435587,-500.0,0.00010134,2]
[352334804,1739045435597,-966.6,0.00010134,2]
[352334806,1739045435606,-500.0,0.00010134,2]
[352334808,1739045435616,-2087.17,0.00010134,2]
[352334810,1739045435625,-639.1,0.00010134,2]
[352334812,1739045435635,-547.99,0.00010134,2]
[352334814,1739045435645,-500.0,0.00010134,2]
[352334816,1739045435654,-3399.75,0.00010134,2]
[352334818,1739045435663,-530.88,0.00010134,2]
[352334820,1739045435672,-886.55,0.00010134,2]
[352334822,1739045435681,-1018.61,0.00010134,2]
[352334824,1739045435691,-580.72,0.00010134,2]
[352334826,1739045435700,-669.78,0.00010134,2]
[352334828,1739045435710,-637.52,0.00010134,2]
[352334830,1739045435720,-500.0,0.00010134,2]
[352334832,1739045435729,-1185.58,0.00010134,2]
[352334834,1739045435739,-500.0,0.00010134,2]
[352334836,1739045435749,-500.0,0.00010134,2]
[352334838,1739045435758,-834.2,0.00010134,2]
[352334840,1739045435767,-703.74,0.00010134,2]
[352334842,1739045435776,-500.0,0.00010134,2]
[352334844,1739045435787,-882.86,0.00010134,2]
[352334846,1739045435796,-1000.74,0.00010134,2]
[352334848,1739045435806,-500.0,0.00010134,2]
[352334850,1739045435815,-638.94,0.00010134,2]
[352334852,1739045435824,-1000.0,0.00010134,2]
[352334854,1739045435833,-500.0,0.00010134,2]
[352334856,1739045435842,-792.57,0.00010134,2]
[352334857,1739045435851,-517.78,0.00010134,2]
[352334859,1739045435860,-500.0,0.00010134,2]
[352334861,1739045435870,-840.06,0.00010134,2]
[352334863,1739045435880,-657.71,0.00010134,2]
[352334865,1739045435889,-912.76,0.00010134,2]
[352334867,1739045435899,-500.0,0.00010134,2]
[352334869,1739045435907,-500.0,0.00010134,2]
[352334871,1739045435916,-500.0,0.00010134,2]
[352334873,1739045435925,-500.0,0.00010134,2]
[352334875,1739045435935,-500.0,0.00010135,2]
[352334877,1739045435944,-500.0,0.00010135,2]
[352334879,1739045435953,-500.0,0.00010135,2]
[352334881,1739045435963,-500.0,0.00010135,2]
[352334883,1739045435972,-500.0,0.00010135,2]
[352334885,1739045435981,-500.0,0.00010135,2]
[352334887,1739045435990,-500.0,0.00010135,2]
[352334889,1739045435999,-500.0,0.00010135,2]
[352334891,1739045436009,-500.0,0.00010135,2]
[352334893,1739045436019,-500.0,0.00010135,2]
[352334895,1739045436029,-500.0,0.00010135,2]
[352334897,1739045436038,-500.0,0.00010135,2]
[352334899,1739045436048,-500.0,0.00010135,2]
[352334901,1739045436057,-500.0,0.00010135,2]
[352334903,1739045436067,-500.0,0.00010135,2]
[352334905,1739045436076,-500.0,0.00010135,2]
[352334907,1739045436087,-409.85,0.00010137,2]
[352334909,1739045436096,-1100.0,0.00010227,2]
[352334911,1739045436105,-607.93971233,0.00010269,2]
[352334913,1739045436119,-500.0,0.00010269,2]
[352334915,1739045436129,-301.48767511,0.00010269,2]
[352334917,1739045436139,-500.0,0.0001027,2]
[352334919,1739045436148,-500.0,0.0001027,2]
[352334921,1739045436158,-500.0,0.0001027,2]
[352334923,1739045436167,-500.0,0.0001027,2]
[352334925,1739045436176,-502.77,0.0001027,2]
[352334927,1739045436185,-500.0,0.0001027,2]
[352334929,1739045436195,-500.0,0.0001027,2]
[352334931,1739045436205,-730.59,0.0001027,2]
[352334933,1739045436214,-529.33,0.0001027,2]
[352334935,1739045436223,-748.86,0.0001027,2]
[352334937,1739045436233,-500.0,0.0001027,2]
[352334939,1739045436242,-500.0,0.0001027,2]
[352334941,1739045436251,-500.0,0.0001027,2]
[352334943,1739045436260,-500.0,0.0001027,2]
[352334945,1739045436269,-500.0,0.0001027,2]
[352334947,1739045436279,-500.0,0.0001027,2]
[352334949,1739045436288,-500.0,0.0001027,2]
[352334951,1739045436297,-500.0,0.0001027,2]
[352334953,1739045436306,-756.52,0.0001027,2]
[352334955,1739045436315,-500.0,0.0001027,2]
[352334957,1739045436324,-841.947186,0.0001027,2]
[352334959,1739045436334,-500.0,0.0001027,2]
[352334961,1739045436343,-500.0,0.0001027,2]
[352334963,1739045436352,-500.0,0.0001027,2]
[352334965,1739045436362,-229.23057673,0.0001027,2]
[352334967,1739045436371,-649.17,0.0001027,2]
[352334969,1739045436381,-883.869385,0.0001027,2]
[352334971,1739045436390,-500.0,0.0001027,2]
[352334973,1739045436400,-360.27,0.0001027,2]
[352334975,1739045436410,-500.0,0.0001027,2]
[352334977,1739045436419,-618.96,0.0001027,2]
[352334979,1739045436428,-500.0,0.0001027,2]
[352334981,1739045436438,-529.9,0.0001027,2]
[352334983,1739045436447,-500.0,0.0001027,2]
[352334985,1739045436457,-500.0,0.0001027,2]
[352334987,1739045436467,-675.64,0.0001027,2]
[352334989,1739045436476,-500.0,0.0001027,2]
[352334991,1739045436485,-500.0,0.0001027,2]
[352334993,1739045436494,-500.0,0.0001027,2]
[352334995,1739045436503,-500.0,0.0001027,2]
[352334997,1739045436512,-500.0,0.0001027,2]
[352334999,1739045436521,-210.0,0.0001027,2]
[352335001,1739045436531,-506.44248603,0.0001027,2]
[352335003,1739045436540,-543.33,0.0001027,2]
[352335005,1739045436549,-316.84,0.0001027,2]
[352335007,1739045436558,-500.0,0.0001027,2]
[352335009,1739045436567,-500.0,0.0001027,2]
[352335011,1739045436577,-564.73,0.0001027,2]
[352335013,1739045436586,-500.0,0.0001027,2]
[352335015,1739045436595,-559.83,0.0001027,2]
[352335017,1739045436604,-500.0,0.0001027,2]
[352335019,1739045436614,-500.0,0.0001027,2]
[352335020,1739045436623,-1079.27,0.0001027,2]
[352335022,1739045436633,-627.44,0.0001027,2]
[352335024,1739045436642,-500.0,0.0001027,2]
[352335026,1739045436652,-500.0,0.0001027,2]
[352335029,1739045436661,-1024.9,0.0001027,2]
[352335030,1739045436672,-500.0,0.0001027,2]
[352335032,1739045436681,-788.94,0.0001027,2]
[352335034,1739045436690,-500.0,0.0001027,2]
[352335036,1739045436700,-910.92,0.0001027,2]
[352335038,1739045436709,-500.0,0.0001027,2]
[352335040,1739045436718,-566.38,0.0001027,2]
[352335042,1739045436727,-581.52,0.0001027,2]
[352335044,1739045436737,-591.47,0.0001027,2]
[352335046,1739045436746,-500.0,0.0001027,2]
[352335048,1739045436755,-800.56,0.0001027,2]
[352335050,1739045436764,-519.12,0.0001027,2]
[352335052,1739045436773,-641.44,0.0001027,2]
[352335054,1739045436783,-500.0,0.0001027,2]
[352335056,1739045436792,-508.41,0.0001027,2]
[352335058,1739045436802,-704.95,0.0001027,2]
[352335060,1739045436812,-713.16,0.0001027,2]
[352335062,1739045436822,-500.0,0.0001027,2]
[352335065,1739045436832,-500.0,0.0001027,2]
[352335067,1739045436843,-803.08,0.0001027,2]
[352335069,1739045436853,-612.81,0.0001027,2]
[352335071,1739045436862,-1279.03,0.0001027,2]
[352335073,1739045436874,-500.0,0.0001027,2]
[352335075,1739045436884,-500.0,0.0001027,2]
[352335077,1739045436894,-1063.48,0.0001027,2]
[352335079,1739045436903,-500.0,0.0001027,2]
[352335081,1739045436912,-500.0,0.0001027,2]
[352335083,1739045436923,-500.0,0.0001027,2]
[352335085,1739045436932,-530.24,0.0001027,2]
[352335087,1739045436942,-603.88,0.0001027,2]
[352335089,1739045436957,-677.48,0.0001027,2]
[352335091,1739045436966,-1278.27,0.0001027,2]
[352335093,1739045436976,-500.0,0.0001027,2]
[352335095,1739045436986,-1000.42,0.0001027,2]
[352335097,1739045436996,-500.0,0.0001027,2]
[352335099,1739045437005,-664.4,0.0001027,2]
[352335101,1739045437015,-500.0,0.0001027,2]
[352335103,1739045437024,-500.0,0.0001027,2]
[352335105,1739045437035,-571.81,0.0001027,2]
[352335107,1739045437045,-989.47,0.0001027,2]
[352335109,1739045437055,-1596.25,0.0001027,2]
[352335111,1739045437065,-500.0,0.0001027,2]
[352335113,1739045437075,-553.0,0.0001027,2]
[352335115,1739045437085,-1310.5,0.0001027,2]
[352335117,1739045437094,-2871.76,0.0001027,2]
[352335119,1739045437104,-1160.42,0.0001027,2]
[352335121,1739045437116,-917.51,0.0001027,2]
[352335123,1739045437126,-899.03,0.0001027,2]
[352335125,1739045437135,-500.0,0.0001027,2]
[352335127,1739045437145,-773.62,0.0001027,2]
[352335150,1739045437346,-1347.0,0.0001027,2]
[352335152,1739045437356,-881.83,0.0001027,2]
[352335154,1739045437366,-743.17,0.0001027,2]
[352335156,1739045437376,-500.0,0.0001027,2]
[352335158,1739045437386,-1246.42,0.0001027,2]
[352335160,1739045437395,-1046.85,0.0001027,2]
[352335162,1739045437405,-500.0,0.0001027,2]
[352335164,1739045437414,-782.2,0.0001027,2]
[352335166,1739045437423,-1385.47,0.0001027,2]
[352335168,1739045437433,-500.0,0.0001027,2]
[352335170,1739045437443,-1328.22,0.0001027,2]
[352335172,1739045437452,-596.15,0.0001027,2]
[352335174,1739045437461,-1382.25,0.0001027,2]
[352335175,1739045437470,-1293.42,0.0001027,2]
[352335176,1739045437479,-626.97,0.0001027,2]
[352335177,1739045437489,-500.0,0.0001027,2]
[352335178,1739045437498,-1264.98,0.0001027,2]
[352335179,1739045437507,-500.0,0.0001027,2]
[352335180,1739045437516,-1255.74,0.0001027,2]
[352335181,1739045437524,-644.01156205,0.0001027,2]
[352335182,1739045437534,-1988.02,0.0001027,2]
[352335183,1739045437543,-667.16,0.0001027,2]
[352335184,1739045437552,-500.0,0.0001027,2]
[352335185,1739045437561,-500.0,0.0001027,2]
[352335186,1739045437570,-993.75,0.0001027,2]
[352335187,1739045437580,-995.03,0.0001027,2]
[352335188,1739045437591,-665.6,0.0001027,2]
[352335190,1739045437600,-625.25,0.0001027,2]
[352335192,1739045437610,-1130.35,0.0001027,2]
[352335194,1739045437619,-757.96,0.0001027,2]
[352335196,1739045437629,-1548.22,0.0001027,2]
[352335198,1739045437638,-580.38,0.0001027,2]
[352335200,1739045437648,-1882.42,0.0001027,2]
[352335202,1739045437658,-2130.84,0.0001027,2]
[352335204,1739045437667,-867.7,0.0001027,2]
[352335206,1739045437676,-562.92,0.0001027,2]
[352335208,1739045437686,-893.62,0.0001027,2]
[352335210,1739045437695,-527.94,0.0001027,2]
[352335212,1739045437704,-635.75,0.0001027,2]
[352335214,1739045437713,-500.0,0.0001027,2]
[352335216,1739045437723,-500.0,0.0001027,2]
[352335218,1739045437733,-653.15,0.0001027,2]
[352335220,1739045437743,-695.11,0.0001027,2]
[352335222,1739045437753,-500.0,0.0001027,2]
[352335224,1739045437762,-500.0,0.0001027,2]
[352335226,1739045437772,-500.0,0.0001027,2]
[352335228,1739045437781,-627.42,0.0001027,2]
[352335230,1739045437791,-500.0,0.0001027,2]
[352335232,1739045437800,-500.0,0.0001027,2]
[352335234,1739045437810,-902.58,0.0001027,2]
[352335235,1739045437819,-1121.08,0.0001027,2]
[352335236,1739045437828,-500.0,0.0001027,2]
[352335238,1739045437840,-500.0,0.0001027,2]
[352335240,1739045437849,-500.0,0.0001027,2]
[352335242,1739045437858,-500.0,0.0001027,2]
[352335244,1739045437867,-621.83,0.0001027,2]
[352335246,1739045437876,-500.0,0.0001027,2]
[352335248,1739045437885,-808.74,0.0001027,2]
[352335250,1739045437894,-500.0,0.00010271,2]
[352335252,1739045437904,-500.0,0.00010271,2]
[352335254,1739045437913,-500.0,0.00010271,2]
[352335256,1739045437923,-549.77,0.00010271,2]
[352335257,1739045437933,-500.0,0.00010271,2]
[352335260,1739045437944,-500.0,0.00010271,2]
[352335262,1739045437953,-500.0,0.00010271,2]
[352335263,1739045437963,-500.0,0.00010271,2]
[352335265,1739045437971,-531.28,0.00010271,2]
[352335267,1739045437981,-500.0,0.00010271,2]
[352335269,1739045437991,-589.42,0.00010271,2]
[352335271,1739045438000,-500.0,0.00010271,2]
[352335273,1739045438010,-500.0,0.00010271,2]
[352335276,1739045438023,-500.0,0.00010271,2]
[352335279,1739045438032,-576.86,0.00010271,2]
[352335281,1739045438041,-515.82,0.00010271,2]
[352335283,1739045438051,-648.95,0.00010271,2]
[352335285,1739045438060,-272.41228994,0.00010271,2]
[352335287,1739045438069,-500.0,0.00010271,2]
[352335290,1739045438080,-500.0,0.00010271,2]
[352335291,1739045438090,-500.0,0.00010271,2]
[352335293,1739045438100,-500.0,0.00010271,2]
[352335295,1739045438112,-500.0,0.00010271,2]
[352335296,1739045438122,-500.0,0.00010271,2]
[352335297,1739045438131,-500.0,0.00010271,2]
[352335298,1739045438140,-770.3,0.00010271,2]
[352335299,1739045438151,-500.0,0.00010271,2]
[352335300,1739045438160,-500.0,0.00010271,2]
[352335301,1739045438169,-622.01,0.00010271,2]
[352335302,1739045438179,-647.24300444,0.00010271,2]
[352335303,1739045438188,-500.0,0.00010271,2]
[352335304,1739045438199,-500.0,0.00010271,2]
[352335305,1739045438209,-500.0,0.00010271,2]
[352335306,1739045438219,-500.0,0.00010271,2]
[352335307,1739045438228,-500.0,0.00010271,2]
[352335308,1739045438238,-500.0,0.00010271,2]
[352335309,1739045438247,-553.5,0.00010271,2]
[352335310,1739045438257,-500.0,0.00010271,2]
[352335311,1739045438267,-500.0,0.00010271,2]
[352335312,1739045438276,-500.0,0.00010271,2]
[352335313,1739045438286,-500.0,0.00010271,2]
[352335314,1739045438295,-500.0,0.00010271,2]
[352335315,1739045438305,-500.0,0.00010271,2]
[352335316,1739045438314,-651.34,0.00010271,2]
[352335317,1739045438323,-510.81,0.00010271,2]
[352335318,1739045438333,-387.7387564,0.00010271,2]
[352335319,1739045438343,-500.0,0.00010271,2]
[352335320,1739045438352,-566.03,0.00010271,2]
[352335321,1739045438361,-553.02,0.00010271,2]
[352335322,1739045438370,-575.57,0.00010271,2]
[352335323,1739045438380,-500.0,0.00010271,2]
[352335324,1739045438390,-500.0,0.00010271,2]
[352335325,1739045438399,-500.0,0.00010271,2]
[352335326,1739045438410,-500.0,0.00010271,2]
[352335327,1739045438419,-313.12450381,0.00010271,2]
[352335328,1739045438428,-500.0,0.00010271,2]
[352335329,1739045438438,-537.32,0.00010271,2]
[352335330,1739045438449,-500.0,0.00010271,2]
[352335331,1739045438458,-1542.19,0.00010271,2]
[352335332,1739045438467,-500.0,0.00010271,2]
[352335334,1739045438476,-500.0,0.00010271,2]
[352335336,1739045438485,-1075.2,0.00010271,2]
[352335338,1739045438494,-500.0,0.00010271,2]
[352335340,1739045438503,-500.0,0.00010271,2]
[352335342,1739045438513,-744.75,0.00010271,2]
[352335344,1739045438523,-500.0,0.00010271,2]
[352335346,1739045438533,-1161.36,0.00010271,2]
[352335348,1739045438542,-976.67,0.00010271,2]
[352335350,1739045438551,-966.6,0.00010271,2]
[352335352,1739045438561,-500.0,0.00010271,2]
[352335354,1739045438570,-500.0,0.00010271,2]
[352335356,1739045438580,-639.1,0.00010271,2]
[352335358,1739045438589,-2087.17,0.00010271,2]
[352335360,1739045438598,-547.99,0.00010271,2]
[352335361,1739045438608,-500.0,0.00010271,2]
[352335364,1739045438617,-3399.75,0.00010271,2]
[352335366,1739045438627,-530.88,0.00010271,2]
[352335368,1739045438637,-886.55,0.00010271,2]
[352335370,1739045438646,-1018.61,0.00010271,2]
[352335372,1739045438655,-580.72,0.00010271,2]
[352335374,1739045438665,-669.78,0.00010271,2]
[352335376,1739045438675,-637.52,0.00010271,2]
[352335378,1739045438684,-500.0,0.00010271,2]
[352335380,1739045438694,-1185.58,0.00010271,2]
[352335382,1739045438703,-500.0,0.00010271,2]
[352335384,1739045438712,-500.0,0.00010271,2]
[352335386,1739045438722,-834.2,0.00010271,2]
[352335387,1739045438731,-703.74,0.00010271,2]
[352335389,1739045438741,-500.0,0.00010271,2]
[352335391,1739045438750,-882.86,0.00010271,2]
[352335393,1739045438759,-1000.74,0.00010271,2]
[352335395,1739045438768,-500.0,0.00010271,2]
[352335397,1739045438778,-638.94,0.00010271,2]
[352335399,1739045438787,-1000.0,0.00010271,2]
[352335401,1739045438797,-500.0,0.00010271,2]
[352335403,1739045438806,-792.57,0.00010271,2]
[352335405,1739045438816,-517.78,0.00010271,2]
[352335407,1739045438826,-500.0,0.00010271,2]
[352335409,1739045438836,-840.06,0.00010271,2]
[352335411,1739045438845,-657.71,0.00010271,2]
[352335414,1739045438855,-912.76,0.00010271,2]
[352335415,1739045438864,-500.0,0.00010271,2]
[352335417,1739045438874,-500.0,0.00010271,2]
[352335419,1739045438883,-500.0,0.00010271,2]
[352335421,1739045438893,-427.21847381,0.00010271,2]
[352335423,1739045438902,-500.0,0.00010272,2]
[352335425,1739045438911,-500.0,0.00010272,2]
[352335427,1739045438920,-500.0,0.00010272,2]
[352335429,1739045438930,-500.0,0.00010272,2]
[352335432,1739045438940,-500.0,0.00010272,2]
[352335434,1739045438950,-500.0,0.00010272,2]
[352335435,1739045438959,-500.0,0.00010272,2]
[352335438,1739045438969,-500.0,0.00010272,2]
[352335440,1739045438980,-427.21635574,0.00010272,2]
[352335442,1739045438989,-500.0,0.00010272,2]
[352335444,1739045438999,-500.0,0.00010272,2]
[352335445,1739045439009,-500.0,0.00010272,2]
[352335447,1739045439018,-500.0,0.00010272,2]
[352335449,1739045439028,-500.0,0.00010272,2]
[352335451,1739045439037,-500.0,0.00010407,2]
[352335453,1739045439046,-500.0,0.00010407,2]
[352335455,1739045439056,-500.0,0.00010407,2]
[352335457,1739045439065,-500.0,0.00010407,2]
[352335459,1739045439074,-502.77,0.00010407,2]
[352335461,1739045439083,-563.5687654,0.00010407,2]
[352335463,1739045439092,-500.0,0.00010407,2]
[352335465,1739045439102,-730.59,0.00010407,2]
[352335467,1739045439112,-529.33,0.00010407,2]
[352335469,1739045439126,-748.86,0.00010407,2]
[352335471,1739045439135,-500.0,0.00010407,2]
[352335473,1739045439145,-500.0,0.00010407,2]
[352335475,1739045439154,-500.0,0.00010407,2]
[352335478,1739045439173,-500.0,0.00010407,2]
[352335481,1739045439185,-500.0,0.00010407,2]
[352335483,1739045439196,-500.0,0.00010407,2]
[352335485,1739045439206,-500.0,0.00010407,2]
[352335487,1739045439217,-640.0,0.00010407,2]
[352335489,1739045439226,-756.52,0.00010407,2]
[352335491,1739045439238,-500.0,0.00010407,2]
[352335493,1739045439248,-841.947186,0.00010407,2]
[352335495,1739045439257,-500.0,0.00010407,2]
[352335497,1739045439267,-500.0,0.00010407,2]
[352335499,1739045439277,-500.0,0.00010407,2]
[352335501,1739045439288,-649.17,0.00010407,2]
[352335503,1739045439298,-883.869385,0.00010407,2]
[352335505,1739045439308,-500.0,0.00010407,2]
[352335508,1739045439318,-500.0,0.00010407,2]
[352335510,1739045439327,-618.96,0.00010407,2]
[352335512,1739045439337,-500.0,0.00010407,2]
[352335514,1739045439347,-529.9,0.00010407,2]
[352335516,1739045439357,-500.0,0.00010407,2]
[352335518,1739045439367,-559.3,0.00010407,2]
[352335520,1739045439378,-675.64,0.00010407,2]
[352335522,1739045439388,-500.0,0.00010407,2]
[352335524,1739045439399,-447.02262075,0.00010407,2]
[352335526,1739045439408,-500.0,0.00010407,2]
[352335528,1739045439419,-543.33,0.00010407,2]
[352335530,1739045439429,-500.0,0.00010407,2]
[352335532,1739045439439,-500.0,0.00010407,2]
[352335534,1739045439450,-564.73,0.00010407,2]
[352335536,1739045439459,-559.83,0.00010407,2]
[352335539,1739045439469,-500.0,0.00010407,2]
[352335540,1739045439479,-500.0,0.00010407,2]
[352335542,1739045439490,-1079.27,0.00010407,2]
[352335545,1739045439500,-627.44,0.00010407,2]
[352335547,1739045439509,-500.0,0.00010407,2]
[352335549,1739045439519,-500.0,0.00010407,2]
[352335551,1739045439528,-1024.9,0.00010407,2]
[352335553,1739045439538,-500.0,0.00010407,2]
[352335555,1739045439548,-788.94,0.00010407,2]
[352335557,1739045439558,-500.0,0.00010407,2]
[352335559,1739045439568,-910.92,0.00010407,2]
[352335561,1739045439577,-501.54,0.00010407,2]
[352335563,1739045439589,-566.38,0.00010407,2]
[352335565,1739045439599,-581.52,0.00010407,2]
[352335567,1739045439609,-591.47,0.00010407,2]
[352335569,1739045439619,-500.0,0.00010407,2]
[352335571,1739045439629,-800.56,0.00010407,2]
[352335573,1739045439639,-519.12,0.00010407,2]
[352335575,1739045439648,-641.44,0.00010407,2]
[352335577,1739045439658,-500.0,0.00010407,2]
[352335579,1739045439667,-508.41,0.00010407,2]
[352335581,1739045439677,-704.95,0.00010407,2]
[352335592,1739045439775,-713.16,0.00010407,2]
[352335594,1739045439784,-500.0,0.00010407,2]
[352335596,1739045439794,-500.0,0.00010407,2]
[352335598,1739045439803,-803.08,0.00010407,2]
[352335600,1739045439812,-612.81,0.00010407,2]
[352335602,1739045439821,-1279.03,0.00010407,2]
[352335604,1739045439830,-500.0,0.00010407,2]
[352335606,1739045439843,-500.0,0.00010407,2]
[352335608,1739045439853,-1063.48,0.00010407,2]
[352335611,1739045439863,-500.0,0.00010407,2]
[352335612,1739045439872,-519.25,0.00010407,2]
[352335614,1739045439881,-500.0,0.00010407,2]
[352335616,1739045439891,-530.24,0.00010407,2]
[352335618,1739045439900,-603.88,0.00010407,2]
[352335620,1739045439910,-677.48,0.00010407,2]
[352335622,1739045439919,-1278.27,0.00010407,2]
[352335624,1739045439928,-500.0,0.00010407,2]
[352335626,1739045439938,-1000.42,0.00010407,2]
[352335628,1739045439947,-500.0,0.00010407,2]
[352335630,1739045439957,-664.4,0.00010407,2]
[352335631,1739045439966,-500.0,0.00010407,2]
[352335632,1739045439976,-500.0,0.00010407,2]
[352335633,1739045439986,-571.81,0.00010407,2]
[352335635,1739045439995,-989.47,0.00010407,2]
[352335637,1739045440005,-1596.25,0.00010407,2]
[352335639,1739045440015,-463.77,0.00010407,2]
[352335641,1739045440024,-553.0,0.00010407,2]
[352335643,1739045440034,-1310.5,0.00010407,2]
[352335645,1739045440043,-2871.76,0.00010407,2]
[352335647,1739045440052,-1160.42,0.00010407,2]
[352335649,1739045440062,-917.51,0.00010407,2]
[352335650,1739045440071,-899.03,0.00010407,2]
[352335652,1739045440081,-500.0,0.00010407,2]
[352335654,1739045440094,-773.62,0.00010407,2]
[352335656,1739045440104,-1347.0,0.00010407,2]
[352335658,1739045440116,-743.17,0.00010407,2]
[352335661,1739045440127,-881.83,0.00010407,2]
[352335662,1739045440136,-500.0,0.00010407,2]
[352335664,1739045440145,-1246.42,0.00010407,2]
[352335666,1739045440155,-1046.85,0.00010407,2]